[Event "Titled Tuesday Blitz March 28 Early 2023"]
[White "Preotu, Razvan"]
[Black "Nunez V, Gustavo Eduardo"]
[WhiteFideId "2613280"]
[BlackFideId "4403690"]
[WhiteElo "2407"]
[BlackElo "2228"]
[Result "1-0"]
[Round "02"]
[TimeControl "180+2"]
[Date "2023.03.28"]
[WhiteClock "0:00:29"]
[BlackClock "0:00:21"]

1. e4 {[%clk 0:03:00]}  c5 {[%clk 0:02:52]} 2. Nf3 {[%clk 0:03:01]}  e6 {[%clk 0:02:49]} 3. c3 {[%clk 0:03:01]}  d5 {[%clk 0:02:47]} 4. exd5 {[%clk 0:03:02]}  exd5 {[%clk 0:02:48]} 5. d4 {[%clk 0:03:02]}  c4 {[%clk 0:02:48]} 6. b3 {[%clk 0:03:01]}  cxb3 {[%clk 0:02:38]} 7. Bb5+ {[%clk 0:03:01]}  Bd7 {[%clk 0:02:37]} 8. Bxd7+ {[%clk 0:02:43]}  Nxd7 {[%clk 0:02:38]} 9. Qxb3 {[%clk 0:02:36]}  Nb6 {[%clk 0:02:38]} 10. O-O {[%clk 0:02:36]}  Bd6 {[%clk 0:02:37]} 11. a4 {[%clk 0:02:33]}  Qd7 {[%clk 0:02:32]} 12. a5 {[%clk 0:02:32]}  Nc4 {[%clk 0:02:32]} 13. Nbd2 {[%clk 0:02:28]}  Rc8 {[%clk 0:02:32]} 14. Nxc4 {[%clk 0:02:25]}  Rxc4 {[%clk 0:02:33]} 15. Rb1 {[%clk 0:02:24]}  Ne7 {[%clk 0:02:22]} 16. Qxb7 {[%clk 0:02:23]}  Qxb7 {[%clk 0:02:21]} 17. Rxb7 {[%clk 0:02:24]}  Rxc3 {[%clk 0:02:17]} 18. Rxa7 {[%clk 0:02:20]}  O-O {[%clk 0:02:17]} 19. Rd7 {[%clk 0:02:13]}  Rc6 {[%clk 0:02:09]} 20. Ne5 {[%clk 0:02:07]}  Ra6 {[%clk 0:02:08]} 21. Bd2 {[%clk 0:01:19]}  Nf5 {[%clk 0:02:03]} 22. Nf3 {[%clk 0:01:19]}  h5 {[%clk 0:01:58]} 23. Rb1 {[%clk 0:01:18]}  Rc8 {[%clk 0:01:54]} 24. Rb6 {[%clk 0:01:16]}  Rc6 {[%clk 0:01:53]} 25. Rxa6 {[%clk 0:01:07]}  Rxa6 {[%clk 0:01:52]} 26. Ng5 {[%clk 0:01:02]}  f6 {[%clk 0:01:51]} 27. Rd8+ {[%clk 0:01:01]}  Bf8 {[%clk 0:01:51]} 28. Ne6 {[%clk 0:01:01]}  Rxe6 {[%clk 0:01:50]} 29. Rxd5 {[%clk 0:01:01]}  Ne7 {[%clk 0:01:45]} 30. Rd8 {[%clk 0:01:00]}  Nc6 {[%clk 0:01:43]} 31. Ra8 {[%clk 0:00:57]}  Kf7 {[%clk 0:01:35]} 32. d5 {[%clk 0:00:56]}  Rd6 {[%clk 0:01:32]} 33. dxc6 {[%clk 0:00:53]}  Rxd2 {[%clk 0:01:33]} 34. g3 {[%clk 0:00:53]}  Rc2 {[%clk 0:01:32]} 35. Rc8 {[%clk 0:00:41]}  Bc5 {[%clk 0:01:32]} 36. c7 {[%clk 0:00:34]}  Bxf2+ {[%clk 0:01:22]} 37. Kf1 {[%clk 0:00:35]}  Bd4 {[%clk 0:01:22]} 38. Rd8 {[%clk 0:00:30]}  Rxc7 {[%clk 0:01:14]} 39. Rxd4 {[%clk 0:00:30]}  Ke6 {[%clk 0:01:12]} 40. Ra4 {[%clk 0:00:29]}  Ra7 {[%clk 0:01:11]} 41. a6 {[%clk 0:00:29]}  Kd6 {[%clk 0:01:11]} 42. Kf2 {[%clk 0:00:29]}  Kc6 {[%clk 0:01:11]} 43. Kf3 {[%clk 0:00:29]}  Kb6 {[%clk 0:01:09]} 44. Ke4 {[%clk 0:00:29]}  g6 {[%clk 0:01:04]} 45. Kd5 {[%clk 0:00:30]}  f5 {[%clk 0:00:23]} 46. Ke6 {[%clk 0:00:28]}  h4 {[%clk 0:00:17]} 47. Kf6 {[%clk 0:00:24]}  hxg3 {[%clk 0:00:17]} 48. hxg3 {[%clk 0:00:25]}  Kb5 {[%clk 0:00:16]} 49. Ra1 {[%clk 0:00:24]}  Rxa6+ {[%clk 0:00:12]} 50. Rxa6 {[%clk 0:00:23]}  Kxa6 {[%clk 0:00:13]} 51. Kxg6 {[%clk 0:00:24]}  Kb7 {[%clk 0:00:13]} 52. Kxf5 {[%clk 0:00:24]}  Kc6 {[%clk 0:00:14]} 53. Ke6 {[%clk 0:00:24]}  Kc7 {[%clk 0:00:15]} 54. Ke7 {[%clk 0:00:24]}  Kc6 {[%clk 0:00:15]} 55. g4 {[%clk 0:00:25]}  Kd5 {[%clk 0:00:16]} 56. g5 {[%clk 0:00:26]}  Ke5 {[%clk 0:00:17]} 57. g6 {[%clk 0:00:27]}  Kf5 {[%clk 0:00:18]} 58. g7 {[%clk 0:00:28]}  Kg6 {[%clk 0:00:19]} 59. g8=Q+ {[%clk 0:00:29]}  Kh6 {[%clk 0:00:20]} 60. Kf6 {[%clk 0:00:29]}  Kh5 {[%clk 0:00:21]} 61. Qg5# {[%clk 0:00:29]} 1-0


[Site "https://www.chess.com"]

[Event "Titled Tuesday Blitz March 28 Early 2023"]
[White "Devaev, Alexander"]
[Black "Kezin, Roman"]
[WhiteFideId "4169395"]
[BlackFideId "24124621"]
[WhiteElo "2225"]
[BlackElo "2497"]
[Result "0-1"]
[Round "02"]
[TimeControl "180+2"]
[Date "2023.03.28"]
[WhiteClock "0:00:36"]
[BlackClock "0:00:14"]

1. d4 {[%clk 0:02:57]}  g6 {[%clk 0:02:58]} 2. c4 {[%clk 0:02:53]}  Bg7 {[%clk 0:02:54]} 3. e4 {[%clk 0:02:54]}  d6 {[%clk 0:02:40]} 4. h3 {[%clk 0:02:52]}  Nc6 {[%clk 0:02:35]} 5. Nf3 {[%clk 0:02:52]}  e5 {[%clk 0:02:22]} 6. d5 {[%clk 0:02:50]}  Nd4 {[%clk 0:02:21]} 7. Be3 {[%clk 0:02:51]}  Nxf3+ {[%clk 0:02:01]} 8. Qxf3 {[%clk 0:02:49]}  f5 {[%clk 0:02:00]} 9. Nc3 {[%clk 0:02:38]}  Nf6 {[%clk 0:01:53]} 10. Bd3 {[%clk 0:02:37]}  O-O {[%clk 0:01:43]} 11. Qd1 {[%clk 0:02:26]}  c5 {[%clk 0:01:32]} 12. Qc2 {[%clk 0:02:16]}  f4 {[%clk 0:01:29]} 13. Bd2 {[%clk 0:02:15]}  Bd7 {[%clk 0:01:27]} 14. a3 {[%clk 0:02:14]}  b6 {[%clk 0:01:16]} 15. Be2 {[%clk 0:02:11]}  a6 {[%clk 0:01:12]} 16. b4 {[%clk 0:02:02]}  Rb8 {[%clk 0:01:06]} 17. Rb1 {[%clk 0:02:01]}  Qe7 {[%clk 0:01:05]} 18. bxc5 {[%clk 0:01:56]}  bxc5 {[%clk 0:01:06]} 19. O-O {[%clk 0:01:57]}  h5 {[%clk 0:01:03]} 20. Rxb8 {[%clk 0:01:56]}  Rxb8 {[%clk 0:01:03]} 21. Rb1 {[%clk 0:01:56]}  Rf8 {[%clk 0:01:03]} 22. f3 {[%clk 0:01:54]}  g5 {[%clk 0:01:02]} 23. Rb7 {[%clk 0:01:52]}  Qe8 {[%clk 0:00:59]} 24. Qd1 {[%clk 0:01:47]}  Qg6 {[%clk 0:00:58]} 25. Qb1 {[%clk 0:01:30]}  Bc8 {[%clk 0:00:32]} 26. Rc7 {[%clk 0:01:25]}  g4 {[%clk 0:00:32]} 27. fxg4 {[%clk 0:01:24]}  hxg4 {[%clk 0:00:33]} 28. Rxc8 {[%clk 0:01:25]}  Rxc8 {[%clk 0:00:32]} 29. hxg4 {[%clk 0:01:24]}  Nxg4 {[%clk 0:00:30]} 30. Qb7 {[%clk 0:01:22]}  Rf8 {[%clk 0:00:29]} 31. Qd7 {[%clk 0:01:21]}  f3 {[%clk 0:00:27]} 32. Kf1 {[%clk 0:00:51]}  fxg2+ {[%clk 0:00:15]} 33. Kg1 {[%clk 0:00:52]}  Qh5 {[%clk 0:00:15]} 34. Qe6+ {[%clk 0:00:48]}  Kh8 {[%clk 0:00:15]} 35. Kxg2 {[%clk 0:00:36]}  Qh2# {[%clk 0:00:14]} 0-1


[Site "https://www.chess.com"]

[Event "Titled Tuesday Blitz March 28 Early 2023"]
[White "Samunenkov, Ihor"]
[Black "Liu, Casper"]
[WhiteFideId "14187086"]
[BlackFideId "1454153"]
[WhiteElo "2457"]
[BlackElo "2221"]
[Result "1-0"]
[Round "02"]
[TimeControl "180+2"]
[Date "2023.03.28"]
[WhiteClock "0:01:03"]
[BlackClock "0:00:49"]

1. e4 {[%clk 0:02:59]}  c6 {[%clk 0:03:00]} 2. d4 {[%clk 0:02:57]}  d5 {[%clk 0:03:00]} 3. e5 {[%clk 0:02:58]}  Bf5 {[%clk 0:02:59]} 4. Nf3 {[%clk 0:02:57]}  e6 {[%clk 0:02:59]} 5. Be2 {[%clk 0:02:58]}  c5 {[%clk 0:03:00]} 6. O-O {[%clk 0:02:57]}  Nc6 {[%clk 0:02:59]} 7. c3 {[%clk 0:02:58]}  cxd4 {[%clk 0:02:58]} 8. Nxd4 {[%clk 0:02:59]}  Nge7 {[%clk 0:02:49]} 9. Nxf5 {[%clk 0:02:58]}  Nxf5 {[%clk 0:02:47]} 10. Bd3 {[%clk 0:02:59]}  g6 {[%clk 0:02:36]} 11. Qe2 {[%clk 0:02:58]}  Bg7 {[%clk 0:02:35]} 12. f4 {[%clk 0:02:56]}  O-O {[%clk 0:02:34]} 13. Kh1 {[%clk 0:02:50]}  f6 {[%clk 0:02:34]} 14. exf6 {[%clk 0:02:43]}  Qxf6 {[%clk 0:02:35]} 15. Nd2 {[%clk 0:02:36]}  Rae8 {[%clk 0:02:35]} 16. Nf3 {[%clk 0:02:08]}  e5 {[%clk 0:02:30]} 17. fxe5 {[%clk 0:02:08]}  Nxe5 {[%clk 0:02:30]} 18. Bg5 {[%clk 0:01:55]}  Qb6 {[%clk 0:01:53]} 19. Nxe5 {[%clk 0:01:51]}  Rxe5 {[%clk 0:01:52]} 20. Qd2 {[%clk 0:01:49]}  Qe6 {[%clk 0:01:23]} 21. Bf4 {[%clk 0:01:14]}  Ne3 {[%clk 0:01:14]} 22. Rf3 {[%clk 0:01:15]}  Nxg2 {[%clk 0:00:56]} 23. Qxg2 {[%clk 0:01:05]}  Re1+ {[%clk 0:00:55]} 24. Rxe1 {[%clk 0:01:04]}  Qxe1+ {[%clk 0:00:56]} 25. Rf1 {[%clk 0:01:03]}  Qe6 {[%clk 0:00:49]} 26. Bg3 {[%clk 0:01:03]} 1-0


[Site "https://www.chess.com"]

[Event "Titled Tuesday Blitz March 28 Early 2023"]
[White "Ozdemir, Serhan Berat"]
[Black "Karolczuk, Iwo"]
[WhiteFideId "6374611"]
[BlackFideId "21816972"]
[WhiteElo "2015"]
[BlackElo "2348"]
[Result "1-0"]
[Round "02"]
[TimeControl "180+2"]
[Date "2023.03.28"]
[WhiteClock "0:00:26"]
[BlackClock "0:00:01"]

1. e4 {[%clk 0:02:35]}  c5 {[%clk 0:02:58]} 2. Nf3 {[%clk 0:02:35]}  d6 {[%clk 0:02:57]} 3. d4 {[%clk 0:02:36]}  cxd4 {[%clk 0:02:57]} 4. Nxd4 {[%clk 0:02:37]}  Nf6 {[%clk 0:02:57]} 5. Nc3 {[%clk 0:02:38]}  a6 {[%clk 0:02:58]} 6. Bg5 {[%clk 0:02:38]}  Nbd7 {[%clk 0:02:58]} 7. Qe2 {[%clk 0:02:38]}  h6 {[%clk 0:02:57]} 8. Bh4 {[%clk 0:02:33]}  g6 {[%clk 0:02:58]} 9. f4 {[%clk 0:02:30]}  e5 {[%clk 0:02:58]} 10. fxe5 {[%clk 0:02:30]}  dxe5 {[%clk 0:02:58]} 11. O-O-O {[%clk 0:02:31]}  Qc7 {[%clk 0:02:56]} 12. Nb3 {[%clk 0:02:30]}  b5 {[%clk 0:02:56]} 13. Rxd7 {[%clk 0:02:28]}  Nxd7 {[%clk 0:02:54]} 14. Nd5 {[%clk 0:02:27]}  Qd6 {[%clk 0:02:15]} 15. Na5 {[%clk 0:02:28]}  g5 {[%clk 0:02:12]} 16. Be1 {[%clk 0:02:28]}  Nc5 {[%clk 0:01:44]} 17. Bb4 {[%clk 0:01:46]}  Be6 {[%clk 0:01:39]} 18. Nb7 {[%clk 0:01:45]}  Qc6 {[%clk 0:01:08]} 19. Nf6+ {[%clk 0:01:43]}  Ke7 {[%clk 0:01:06]} 20. Nd5+ {[%clk 0:01:35]}  Ke8 {[%clk 0:01:00]} 21. Na5 {[%clk 0:01:31]}  Qd6 {[%clk 0:00:58]} 22. g3 {[%clk 0:01:18]}  Bxd5 {[%clk 0:00:35]} 23. exd5 {[%clk 0:01:19]}  Nd3+ {[%clk 0:00:35]} 24. cxd3 {[%clk 0:01:14]}  Qxb4 {[%clk 0:00:35]} 25. Qxe5+ {[%clk 0:01:12]}  Qe7 {[%clk 0:00:19]} 26. Qxh8 {[%clk 0:00:57]}  Qe1+ {[%clk 0:00:18]} 27. Kc2 {[%clk 0:00:57]}  Qxa5 {[%clk 0:00:19]} 28. Qe5+ {[%clk 0:00:52]}  Kd8 {[%clk 0:00:18]} 29. Qf6+ {[%clk 0:00:50]}  Kc7 {[%clk 0:00:07]} 30. Qc6+ {[%clk 0:00:45]}  Kb8 {[%clk 0:00:07]} 31. d6 {[%clk 0:00:39]}  Qd8 {[%clk 0:00:01]} 32. Bg2 {[%clk 0:00:36]}  Ra7 {[%clk 0:00:01]} 33. Kb1 {[%clk 0:00:28]}  Bxd6 {[%clk 0:00:01]} 34. Rc1 {[%clk 0:00:26]} 1-0


[Site "https://www.chess.com"]

[Event "Titled Tuesday Blitz March 28 Early 2023"]
[White "Molina, Roberto Junio Brito"]
[Black "Valle Maytin, Luis Enrique"]
[WhiteFideId "2109450"]
[BlackFideId "3503666"]
[WhiteElo "2376"]
[BlackElo "2225"]
[Result "1-0"]
[Round "02"]
[TimeControl "180+2"]
[Date "2023.03.28"]
[WhiteClock "0:02:28"]
[BlackClock "0:01:01"]

1. d4 {[%clk 0:02:59]}  d5 {[%clk 0:02:59]} 2. c4 {[%clk 0:02:58]}  c6 {[%clk 0:02:59]} 3. Nf3 {[%clk 0:02:57]}  Nf6 {[%clk 0:02:59]} 4. Nc3 {[%clk 0:02:57]}  e6 {[%clk 0:02:58]} 5. Bg5 {[%clk 0:02:57]}  Be7 {[%clk 0:02:58]} 6. e3 {[%clk 0:02:57]}  O-O {[%clk 0:02:55]} 7. Bd3 {[%clk 0:02:55]}  Nbd7 {[%clk 0:02:55]} 8. O-O {[%clk 0:02:54]}  b6 {[%clk 0:02:55]} 9. Qe2 {[%clk 0:02:53]}  Bb7 {[%clk 0:02:55]} 10. Rac1 {[%clk 0:02:52]}  Rc8 {[%clk 0:02:54]} 11. Rfd1 {[%clk 0:02:52]}  h6 {[%clk 0:02:53]} 12. Bh4 {[%clk 0:02:52]}  Re8 {[%clk 0:02:39]} 13. cxd5 {[%clk 0:02:50]}  cxd5 {[%clk 0:02:35]} 14. Ba6 {[%clk 0:02:48]}  Qc7 {[%clk 0:01:05]} 15. Bg3 {[%clk 0:02:45]}  Bd6 {[%clk 0:01:04]} 16. Bxd6 {[%clk 0:02:28]}  Bxa6 {[%clk 0:01:03]} 17. Bxc7 {[%clk 0:02:28]}  Bxe2 {[%clk 0:01:02]} 18. Nxe2 {[%clk 0:02:28]}  Ne4 {[%clk 0:01:01]} 1-0


[Site "https://www.chess.com"]

[Event "Titled Tuesday Blitz March 28 Early 2023"]
[White "Onslow, Alfie"]
[Black "Pulpan, Jakub"]
[WhiteFideId "436976"]
[BlackFideId "302759"]
[WhiteElo "2114"]
[BlackElo "2484"]
[Result "0-1"]
[Round "02"]
[TimeControl "180+2"]
[Date "2023.03.28"]
[WhiteClock "0:00:03"]
[BlackClock "0:01:22"]

1. Nf3 {[%clk 0:03:00]}  g6 {[%clk 0:02:53]} 2. e4 {[%clk 0:03:00]}  Bg7 {[%clk 0:02:53]} 3. d4 {[%clk 0:03:00]}  c6 {[%clk 0:02:53]} 4. Bd3 {[%clk 0:02:55]}  d5 {[%clk 0:02:53]} 5. e5 {[%clk 0:02:55]}  Nh6 {[%clk 0:02:52]} 6. c3 {[%clk 0:02:52]}  Bf5 {[%clk 0:02:50]} 7. Bxh6 {[%clk 0:02:52]}  Bxh6 {[%clk 0:02:51]} 8. Bxf5 {[%clk 0:02:52]}  gxf5 {[%clk 0:02:52]} 9. e6 {[%clk 0:02:42]}  O-O {[%clk 0:02:51]} 10. Qe2 {[%clk 0:02:40]}  Qd6 {[%clk 0:02:47]} 11. exf7+ {[%clk 0:02:36]}  Rxf7 {[%clk 0:02:48]} 12. Nbd2 {[%clk 0:02:36]}  Nd7 {[%clk 0:02:46]} 13. Ne5 {[%clk 0:02:36]}  Nxe5 {[%clk 0:02:43]} 14. dxe5 {[%clk 0:02:17]}  Bxd2+ {[%clk 0:02:43]} 15. Kxd2 {[%clk 0:02:17]}  Qh6+ {[%clk 0:02:43]} 16. Kc2 {[%clk 0:02:15]}  e6 {[%clk 0:02:42]} 17. h4 {[%clk 0:02:11]}  Kh8 {[%clk 0:02:41]} 18. Rad1 {[%clk 0:02:05]}  Rg8 {[%clk 0:02:41]} 19. g3 {[%clk 0:02:04]}  f4 {[%clk 0:02:41]} 20. Rhg1 {[%clk 0:01:09]}  fxg3 {[%clk 0:02:40]} 21. fxg3 {[%clk 0:01:08]}  Rgf8 {[%clk 0:02:27]} 22. Rdf1 {[%clk 0:01:07]}  Qg6+ {[%clk 0:02:25]} 23. Kb3 {[%clk 0:01:03]}  Rf5 {[%clk 0:02:22]} 24. g4 {[%clk 0:00:59]}  Rf4 {[%clk 0:02:11]} 25. Rxf4 {[%clk 0:00:43]}  Rxf4 {[%clk 0:02:06]} 26. Qe3 {[%clk 0:00:43]}  Qe4 {[%clk 0:01:56]} 27. Qxa7 {[%clk 0:00:27]}  Qc4+ {[%clk 0:01:35]} 28. Ka3 {[%clk 0:00:27]}  Rf7 {[%clk 0:01:30]} 29. h5 {[%clk 0:00:21]}  b5 {[%clk 0:01:28]} 30. Qa8+ {[%clk 0:00:10]}  Kg7 {[%clk 0:01:28]} 31. h6+ {[%clk 0:00:10]}  Kxh6 {[%clk 0:01:28]} 32. Rh1+ {[%clk 0:00:09]}  Kg7 {[%clk 0:01:28]} 33. g5 {[%clk 0:00:06]}  Qc5+ {[%clk 0:01:25]} 34. Kb3 {[%clk 0:00:06]}  Ra7 {[%clk 0:01:21]} 35. Qd8 {[%clk 0:00:04]}  Qc4+ {[%clk 0:01:22]} 36. Kc2 {[%clk 0:00:04]}  Qe4+ {[%clk 0:01:22]} 37. Kb3 {[%clk 0:00:03]}  Qa4# {[%clk 0:01:22]} 0-1


[Site "https://www.chess.com"]

[Event "Titled Tuesday Blitz March 28 Early 2023"]
[White "Bogaudinov, Rushan"]
[Black "Iniyan, P"]
[WhiteFideId "4129288"]
[BlackFideId "25002767"]
[WhiteElo "1949"]
[BlackElo "2449"]
[Result "0-1"]
[Round "02"]
[TimeControl "180+2"]
[Date "2023.03.28"]
[WhiteClock "0:00:46"]
[BlackClock "0:01:17"]

1. e4 {[%clk 0:02:59]}  g6 {[%clk 0:02:57]} 2. d4 {[%clk 0:02:58]}  Bg7 {[%clk 0:02:58]} 3. Nf3 {[%clk 0:02:58]}  d6 {[%clk 0:02:59]} 4. g3 {[%clk 0:02:55]}  Nf6 {[%clk 0:02:57]} 5. Nc3 {[%clk 0:02:55]}  O-O {[%clk 0:02:58]} 6. Bg2 {[%clk 0:02:54]}  c5 {[%clk 0:02:58]} 7. O-O {[%clk 0:02:54]}  cxd4 {[%clk 0:02:58]} 8. Nxd4 {[%clk 0:02:54]}  Nc6 {[%clk 0:02:51]} 9. Nb3 {[%clk 0:02:50]}  Bg4 {[%clk 0:02:42]} 10. f3 {[%clk 0:02:47]}  Bd7 {[%clk 0:02:43]} 11. Be3 {[%clk 0:02:45]}  Ne5 {[%clk 0:02:35]} 12. Qe2 {[%clk 0:02:37]}  Rc8 {[%clk 0:02:33]} 13. Rad1 {[%clk 0:02:34]}  Nc4 {[%clk 0:02:32]} 14. Bc1 {[%clk 0:02:34]}  b5 {[%clk 0:02:23]} 15. a3 {[%clk 0:02:32]}  a5 {[%clk 0:02:22]} 16. Nd4 {[%clk 0:02:30]}  Nxa3 {[%clk 0:02:20]} 17. Nd5 {[%clk 0:02:18]}  Nxd5 {[%clk 0:02:19]} 18. exd5 {[%clk 0:02:19]}  Nc4 {[%clk 0:02:10]} 19. b3 {[%clk 0:02:15]}  Ne5 {[%clk 0:01:58]} 20. f4 {[%clk 0:02:12]}  Bg4 {[%clk 0:01:58]} 21. Nf3 {[%clk 0:02:03]}  Nxf3+ {[%clk 0:01:49]} 22. Bxf3 {[%clk 0:02:04]}  Bf5 {[%clk 0:01:45]} 23. Be4 {[%clk 0:01:57]}  Qd7 {[%clk 0:01:44]} 24. Bxf5 {[%clk 0:01:37]}  Qxf5 {[%clk 0:01:45]} 25. Rf2 {[%clk 0:01:26]}  Rc7 {[%clk 0:01:41]} 26. Qxb5 {[%clk 0:01:22]}  Rxc2 {[%clk 0:01:40]} 27. Qxa5 {[%clk 0:01:20]}  Rxf2 {[%clk 0:01:40]} 28. Kxf2 {[%clk 0:01:20]}  Qc2+ {[%clk 0:01:40]} 29. Qd2 {[%clk 0:01:17]}  Qxb3 {[%clk 0:01:40]} 30. Kg2 {[%clk 0:01:13]}  Rc8 {[%clk 0:01:36]} 31. Kh3 {[%clk 0:01:00]}  Bf6 {[%clk 0:01:23]} 32. Qe3 {[%clk 0:00:46]}  Qxd1 {[%clk 0:01:17]} 0-1


[Site "https://www.chess.com"]

[Event "Titled Tuesday Blitz March 28 Early 2023"]
[White "Fajdetic, Hrvoje"]
[Black "Kosteniuk, Alexandra"]
[WhiteFideId "14501945"]
[BlackFideId "4128125"]
[WhiteElo "2185"]
[BlackElo "2453"]
[Result "0-1"]
[Round "02"]
[TimeControl "180+2"]
[Date "2023.03.28"]
[WhiteClock "0:00:05"]
[BlackClock "0:00:10"]

1. d4 {[%clk 0:02:54]}  f5 {[%clk 0:02:57]} 2. Bg5 {[%clk 0:02:52]}  h6 {[%clk 0:02:56]} 3. Bh4 {[%clk 0:02:51]}  g5 {[%clk 0:02:56]} 4. e3 {[%clk 0:02:51]}  Nf6 {[%clk 0:02:47]} 5. Bg3 {[%clk 0:02:51]}  c5 {[%clk 0:02:44]} 6. c3 {[%clk 0:02:49]}  Qb6 {[%clk 0:02:31]} 7. Qb3 {[%clk 0:02:48]}  Nc6 {[%clk 0:02:10]} 8. h4 {[%clk 0:02:47]}  Qxb3 {[%clk 0:02:02]} 9. axb3 {[%clk 0:02:47]}  Bg7 {[%clk 0:01:59]} 10. hxg5 {[%clk 0:02:43]}  hxg5 {[%clk 0:01:59]} 11. Rxh8+ {[%clk 0:02:44]}  Bxh8 {[%clk 0:02:00]} 12. Nd2 {[%clk 0:02:43]}  cxd4 {[%clk 0:01:57]} 13. exd4 {[%clk 0:02:42]}  f4 {[%clk 0:01:53]} 14. Bh2 {[%clk 0:02:42]}  d6 {[%clk 0:01:53]} 15. Ngf3 {[%clk 0:02:37]}  Ng4 {[%clk 0:01:44]} 16. Bg1 {[%clk 0:02:06]}  Bf6 {[%clk 0:01:41]} 17. Ne4 {[%clk 0:02:04]}  Bf5 {[%clk 0:01:40]} 18. Nexg5 {[%clk 0:02:02]}  Kd7 {[%clk 0:01:32]} 19. Bb5 {[%clk 0:01:51]}  e6 {[%clk 0:01:22]} 20. Nh3 {[%clk 0:01:42]}  a6 {[%clk 0:01:01]} 21. Nxf4 {[%clk 0:01:17]}  Re8 {[%clk 0:01:00]} 22. Bd3 {[%clk 0:01:05]}  Bxd3 {[%clk 0:00:47]} 23. Nxd3 {[%clk 0:01:05]}  Kc7 {[%clk 0:00:47]} 24. O-O-O {[%clk 0:00:52]}  e5 {[%clk 0:00:45]} 25. dxe5 {[%clk 0:00:47]}  dxe5 {[%clk 0:00:44]} 26. Nc5 {[%clk 0:00:39]}  e4 {[%clk 0:00:38]} 27. Nd2 {[%clk 0:00:30]}  Bg5 {[%clk 0:00:30]} 28. Kc2 {[%clk 0:00:30]}  e3 {[%clk 0:00:28]} 29. fxe3 {[%clk 0:00:26]}  Bxe3 {[%clk 0:00:27]} 30. Nce4 {[%clk 0:00:10]}  Bxd2 {[%clk 0:00:23]} 31. Nxd2 {[%clk 0:00:09]}  Re2 {[%clk 0:00:24]} 32. Kd3 {[%clk 0:00:08]}  Rxg2 {[%clk 0:00:24]} 33. Rf1 {[%clk 0:00:06]}  Nce5+ {[%clk 0:00:22]} 34. Kc2 {[%clk 0:00:05]}  Kc6 {[%clk 0:00:18]} 35. Bd4 {[%clk 0:00:05]}  Kd5 {[%clk 0:00:17]} 36. Rf4 {[%clk 0:00:05]}  b5 {[%clk 0:00:10]} 37. c4+ {[%clk 0:00:04]}  bxc4 {[%clk 0:00:09]} 38. bxc4+ {[%clk 0:00:05]}  Nxc4 {[%clk 0:00:09]} 39. Rxg4 {[%clk 0:00:03]}  Rxg4 {[%clk 0:00:09]} 40. Nxc4 {[%clk 0:00:03]}  Kxc4 {[%clk 0:00:09]} 41. Bc3 {[%clk 0:00:03]}  Rg2+ {[%clk 0:00:10]} 42. Kb1 {[%clk 0:00:03]}  Kb3 {[%clk 0:00:11]} 43. Kc1 {[%clk 0:00:04]}  Rc2+ {[%clk 0:00:10]} 44. Kd1 {[%clk 0:00:04]}  Rh2 {[%clk 0:00:08]} 45. Kc1 {[%clk 0:00:03]}  Rh5 {[%clk 0:00:08]} 46. Kd2 {[%clk 0:00:04]}  a5 {[%clk 0:00:09]} 47. Kd3 {[%clk 0:00:04]}  a4 {[%clk 0:00:09]} 48. Bd4 {[%clk 0:00:04]}  Rd5 {[%clk 0:00:08]} 49. Ke4 {[%clk 0:00:04]}  Rxd4+ {[%clk 0:00:09]} 50. Kxd4 {[%clk 0:00:05]}  Kxb2 {[%clk 0:00:10]} 0-1


[Site "https://www.chess.com"]

[Event "Titled Tuesday Blitz March 28 Early 2023"]
[White "Santos Ruiz, Miguel"]
[Black "mjelcic"]
[WhiteFideId "22291482"]
[WhiteElo "2504"]
[BlackElo "2226"]
[Result "1-0"]
[Round "02"]
[TimeControl "180+2"]
[Date "2023.03.28"]
[WhiteClock "0:00:20"]
[BlackClock "0:00:04"]

1. e4 {[%clk 0:03:00]}  c5 {[%clk 0:02:59]} 2. Nf3 {[%clk 0:03:00]}  g6 {[%clk 0:02:59]} 3. d4 {[%clk 0:03:00]}  cxd4 {[%clk 0:03:00]} 4. Qxd4 {[%clk 0:03:01]}  Nf6 {[%clk 0:02:59]} 5. Nc3 {[%clk 0:03:01]}  Nc6 {[%clk 0:02:59]} 6. Qa4 {[%clk 0:03:01]}  d6 {[%clk 0:02:56]} 7. e5 {[%clk 0:03:02]}  dxe5 {[%clk 0:02:55]} 8. Nxe5 {[%clk 0:03:01]}  Bg7 {[%clk 0:02:52]} 9. Nxc6 {[%clk 0:02:56]}  bxc6 {[%clk 0:02:52]} 10. Qxc6+ {[%clk 0:02:45]}  Bd7 {[%clk 0:02:52]} 11. Qa6 {[%clk 0:02:43]}  O-O {[%clk 0:02:52]} 12. Bd3 {[%clk 0:02:39]}  Qc7 {[%clk 0:02:37]} 13. h3 {[%clk 0:02:26]}  Qe5+ {[%clk 0:02:08]} 14. Ne2 {[%clk 0:01:51]}  Bf5 {[%clk 0:01:43]} 15. O-O {[%clk 0:01:46]}  Nd5 {[%clk 0:01:22]} 16. c3 {[%clk 0:01:17]}  Rfd8 {[%clk 0:00:48]} 17. Bxf5 {[%clk 0:01:05]}  Qxf5 {[%clk 0:00:46]} 18. Ng3 {[%clk 0:01:04]}  Qc2 {[%clk 0:00:40]} 19. Qe2 {[%clk 0:00:55]}  Qxe2 {[%clk 0:00:19]} 20. Nxe2 {[%clk 0:00:56]}  a5 {[%clk 0:00:20]} 21. a4 {[%clk 0:00:45]}  Nb6 {[%clk 0:00:19]} 22. b3 {[%clk 0:00:40]}  Rd3 {[%clk 0:00:18]} 23. Ba3 {[%clk 0:00:34]}  e6 {[%clk 0:00:16]} 24. Rfd1 {[%clk 0:00:33]}  Rad8 {[%clk 0:00:16]} 25. Rxd3 {[%clk 0:00:31]}  Rxd3 {[%clk 0:00:17]} 26. Kf1 {[%clk 0:00:20]}  Nd5 {[%clk 0:00:07]} 27. Rc1 {[%clk 0:00:20]}  Nxc3 {[%clk 0:00:03]} 28. Nxc3 {[%clk 0:00:20]}  Rxc3 {[%clk 0:00:03]} 29. Rxc3 {[%clk 0:00:20]}  Bxc3 {[%clk 0:00:04]} 30. Ke2 {[%clk 0:00:20]} 1-0


[Site "https://www.chess.com"]